[Event "Fagernes Chess GM-Swiss 2024"]
[Site "Fagernes"]
[Date "2024.03.25"]
[Round "2"]
[White "Koelle, Tobias"]
[Black "Akshit Kumar J"]
[Result "1-0"]
[ECO "B13"]
[WhiteElo "2460"]
[BlackElo "2172"]
[Annotator "TA"]
[PlyCount "59"]
[EventDate "2024.03.25"]
[EventType "swiss"]
[EventCountry "NOR"]
[SourceTitle "playchess.com"]
[Source "ChessBase"]
[SourceQuality "1"]
[TimeControl "40/6000+30:2400+30"]

{[%evp 19,59,31,36,33,26,27,34,33,43,40,48,48,56,50,71,53,70,68,68,71,72,42,58,37,118,121,137,125,181,154,182,179,231,233,329,325,465,438,1899,1770,29992,1185]} 1. d4 {[%emt 0:00:03]} d5 {[%emt 0:03:28]} 2. Nf3 {[%emt 0:00:12]} Nf6 {[%emt 0:00:11]} 3. Bf4 {[%emt 0:00:07]} c5 {[%emt 0:00:30]} 4. e3 {[%emt 0:00:06]} Nc6 {[%emt 0:00:06]} 5. Nbd2 {[%emt 0:00:04]} cxd4 {[%emt 0:01:45]} 6. exd4 {[%emt 0:00:02]} Bg4 {[%emt 0:00:11]} 7. c3 {[%emt 0:00:25]} e6 {[%emt 0:00:05]} 8. Qb3 {[%emt 0:00:43]} Qc8 {[%emt 0:01:35]} 9. Bd3 {[%emt 0:07:09]} Be7 {[%emt 0:00:09]} 10. O-O {[%emt 0:00:32]} Bh5 {[%emt 0:00:16]} 11. Rfe1 {[%emt 0:06:13]} Bg6 {[%emt 0:01:17]} 12. Bxg6 {[%emt 0:01:45]} hxg6 {[%emt 0:00:05]} 13. a3 {[%emt 0:02:06] White is slightly better.} Nh5 {[%emt 0:15:43]} 14. Bg5 {[%emt 0:05:54]} Bxg5 {[%emt 0:16:05]} 15. Nxg5 {[%emt 0:00:02]} Nf6 {[%emt 0:03:23]} 16. Ndf3 {[%emt 0:01:38]} Qd7 {[%emt 0:10:19]} 17. Qc2 {[%emt 0:02:07] White is more active.} O-O-O {[%emt 0:15:13]} 18. b4 {[%emt 0:01:18] [#] Threatens to win with b5.} Nh7 {[%emt 0:05:44]} 19. Nxh7 {[%emt 0:11:50]} Rxh7 {[%emt 0:00:05]} 20. Rac1 {[%emt 0:00:43] Strongly threatening c4.} Kb8 {[%emt 0:03:13]} 21. Qd2 {[%emt 0:03:58] Black must now prevent b5.} f6 {[%emt 0:09:08] [#]} ({Better is} 21... Qd6 $14) 22. Qf4+ $1 $16 {[%emt 0:04:27]} Qd6 {[%emt 0:03:30]} 23. Qg4 {[%emt 0:00:58]} Rdh8 {[%emt 0:06:26]} (23... g5 $16) 24. h3 $18 {[%emt 0:05:41]} (24. Rxe6 Rxh2 25. g3 Rh1+ (25... Qxe6 $2 26. Qxe6 Rh1+ 27. Kg2 $18) 26. Kg2 Qxe6 27. Qxe6 Rxc1 $18) 24... g5 {[%emt 0:10:19][%cal Bg6g5,Bg5g4][%mdl 32]} 25. Rxe6 {[%emt 0:00:50]} ({Resist} 25. Qxe6 $6 Qxe6 26. Rxe6 g4 $14) 25... Qd7 {[%emt 0:00:59]} (25... Qf4 {keeps fighting.} 26. Qxf4+ gxf4) 26. Rce1 {[%emt 0:01:02]} Nd8 {[%emt 0:01:48]} (26... Ka8 {is a better defense.} 27. Re8+ Qxe8) 27. Qg3+ {[%emt 0:00:27]} Ka8 {[%emt 0:00:07]} (27... Qc7 {was worth a try.}) 28. Re7 {[%emt 0:00:50]} Qf5 {[%emt 0:01:59]} (28... Qc8 $142 29. Rc7 Qb8) 29. Qc7 {[%emt 0:01:44][%cal Oe7e8] Intending Re8! and mate.} g4 {[%emt 0:00:49]} 30. Rd7 {[%emt 0:00:31] Weighted Error Value: White=0.03 (flawless) /Black=0.65.  Mistake:       	---       	Black=6      Inaccurate:     	White=1     	Black=1      OK:         	White=8     	Black=2      Best:        	White=4     	---        Strong:       	White=1     	---} (30. Re8 $142 Rxe8 31. Rxe8 Qb1+ 32. Ne1 (32. Re1 Qxe1+ 33. Nxe1 Nc6 $18) 32... Qxe1+ 33. Rxe1 a6 34. Qxd8+ Ka7 35. b5 (35. Qxd5 Rh8 36. Re7 Rb8 37. hxg4 Ka8 38. Rxg7 Ka7 39. Qc5+ Ka8 40. Qb6 f5 41. gxf5 Rh8 42. Qxb7#) 35... axb5 36. Qa5+ Kb8 37. Re8#) 1-0

[Event "Fagernes Chess GM-Swiss 2024"]
[Site "Fagernes"]
[Date "2024.03.25"]
[Round "2"]
[White "Willow, Jonah B"]
[Black "Nordahl, Helge"]
[Result "1-0"]
[ECO "B12"]
[WhiteElo "2446"]
[BlackElo "2330"]
[Annotator "TA"]
[PlyCount "87"]
[EventDate "2024.03.25"]
[EventType "swiss"]
[EventCountry "NOR"]
[SourceTitle "playchess.com"]
[Source "ChessBase"]
[SourceQuality "1"]
[TimeControl "40/6000+30:2400+30"]

{[%evp 9,87,0,7,27,16,29,41,-4,31,29,29,27,20,17,20,25,29,25,36,34,27,28,29,33,40,40,40,12,12,12,12,0,14,0,14,-10,-4,-27,0,-19,-16,-16,-16,-16,69,0,0,-15,53,60,63,59,62,0,19,0,18,0,0,0,0,0,47,0,0,0,0,0,1470,1484,1239,691,4281,4132,1736,1510,1490,1235,5057,1466]} 1. e4 {[%emt 2:56:04]} c6 {[%emt 0:01:01]} 2. d4 {[%emt 0:01:11]} d5 {[%emt 0:00:16]} 3. e5 {[%emt 0:00:58]} c5 {[%emt 0:00:22]} 4. Nf3 {[%emt 0:01:31]} Bg4 {[%emt 0:00:31]} 5. dxc5 {[%emt 0:00:51]} Nc6 {[%emt 0:00:29]} 6. c3 {[%emt 0:00:41]} e6 {[%emt 0:00:24]} 7. Be3 {[%emt 0:00:54]} a6 {[%emt 0:00:34]} 8. b4 {[%emt 0:19:00] White is slightly better.} (8. Qb3 $5) 8... g6 {[%emt 0:09:23]} 9. Nbd2 {[%emt 0:10:59]} Bg7 {[%emt 0:03:23]} 10. Bd4 {[%emt 0:06:04]} Nge7 {[%emt 0:08:02]} 11. Be2 {[%emt 0:09:07]} Qc7 {[%emt 0:02:19]} 12. O-O {[%emt 0:02:52]} Bxf3 {[%emt 0:04:13]} 13. Nxf3 {[%emt 0:02:29]} Nxe5 {[%emt 0:00:36]} 14. Nxe5 {[%emt 0:18:24]} Bxe5 {[%emt 0:00:23]} 15. f4 {[%emt 0:00:05]} Bxd4+ {[%emt 0:00:38]} 16. cxd4 {[%emt 0:00:10]} Nc6 {[%emt 0:07:01]} 17. Qd2 {[%emt 0:01:07]} Qe7 {[%emt 0:02:08]} 18. Bd1 {[%emt 0:03:08]} Qf6 {[%emt 0:02:44]} 19. Ba4 {[%emt 0:00:05]} O-O {[%emt 0:00:19]} 20. Rad1 {[%emt 0:01:10]} h5 {[%emt 0:05:34]} 21. Rf3 {[%emt 0:01:40]} Rfc8 {[%emt 0:04:46]} 22. Ra3 {[%emt 0:05:03]} Ne7 {[%emt 0:06:32]} 23. Re1 {[%emt 0:02:29]} Nf5 {[%emt 0:05:14]} 24. Re5 {[%emt 0:00:23]} Rab8 {[%emt 0:00:47]} 25. Bc2 {[%emt 0:06:27]} Ne7 {[%emt 0:02:58]} 26. Re1 {[%emt 0:02:47]} Nf5 {[%emt 0:01:14]} ({Black should try} 26... Nc6 $11 27. Rd1 h4) 27. Re5 {[%emt 0:01:00]} (27. Bxf5 $14 Qxf5 28. Re5) 27... Ne7 $11 {[%emt 0:00:04]} 28. Re1 $1 {[%emt 0:00:03]} Nf5 {[%emt 0:00:05]} (28... Nc6 $11) 29. Bxf5 $14 {[%emt 0:00:09]} Qxf5 {[%emt 0:00:18]} 30. Re5 {[%emt 0:01:21] Black is weak on the dark squares} Qf6 {[%emt 0:03:59]} 31. Rg3 {[%emt 0:02:29] White is more active.} b6 {[%emt 0:01:35]} 32. h3 {[%emt 0:02:28]} (32. Rxh5 $2 {too greedy.} bxc5 33. bxc5 (33. dxc5 $2 {is the wrong capture.} Qa1+ 34. Kf2 Rxc5 $19) 33... Rb1+ 34. Kf2 Rcb8 $19) 32... bxc5 {[%emt 0:01:41]} 33. dxc5 {[%emt 0:00:13][%cal Og3b3]} a5 {[%emt 0:01:01]} 34. a3 {[%emt 0:00:06]} axb4 {[%emt 0:03:57]} 35. axb4 {[%cal Oe5e1]} Rb5 {[%emt 0:00:09]} (35... Ra8 $1 $11) 36. Rxh5 {[%emt 0:02:54]} (36. Ra3 $14 {is more appropriate.}) 36... Rcb8 $11 {[%emt 0:01:07]} 37. f5 $1 {[%emt 0:01:23]} exf5 {[%emt 0:07:42]} 38. Qxd5 $40 {[%emt 0:00:06][%mdl 128] Black needs to defend precisely.} f4 {[%emt 0:00:28][%mdl 8192] [#]} (38... Kf8 $11 39. Rh7 Rxb4) 39. Rxg6+ $3 $18 {[%emt 0:01:05][%mdl 512] White is clearly winning.} Qxg6 {[%emt 0:00:27]} 40. Rg5 {[%emt 0:00:03]} Qxg5 {[%emt 0:00:17]} 41. Qxg5+ {[%emt 0:00:06]} Kf8 {[%emt 0:01:12]} 42. Qh6+ {[%emt 0:03:42]} Kg8 {[%emt 0:01:52]} 43. c6 {[%emt 0:03:25][%cal Bc5c6,Bc6c7][%mdl 32]} Rxb4 {[%emt 0:00:37]} 44. c7 {[%emt 0:00:37] Weighted Error Value: White=0.14 (very precise) /Black=0.16 (very precise) .  Loses game:     	---       	Black=1      Mistake:       	White=2     	Black=3      Inaccurate:     	White=3     	Black=2      OK:         	White=9     	Black=14     Best:        	White=1     	Black=3      Strong:       	White=2     	---        Brilliant:      	White=1     	---} 1-0

[Event "Fagernes Chess GM-Swiss 2024"]
[Site "Fagernes"]
[Date "2024.03.25"]
[Round "2"]
[White "Elsness, Frode"]
[Black "Southcott-Moyers, Indy"]
[Result "1-0"]
[ECO "E04"]
[WhiteElo "2437"]
[BlackElo "2120"]
[Annotator "TA"]
[PlyCount "223"]
[EventDate "2024.03.25"]
[EventType "swiss"]
[EventCountry "NOR"]
[SourceTitle "playchess.com"]
[Source "ChessBase"]
[SourceQuality "1"]
[TimeControl "40/6000+30:2400+30"]

{[%evp 20,223,26,23,11,28,10,9,20,11,14,15,21,33,24,24,14,27,38,28,13,20,14,8,27,6,3,0,0,0,12,0,32,29,27,34,54,33,41,33,47,41,37,36,47,50,47,27,27,6,6,6,6,0,0,0,0,0,0,0,10,5,37,21,21,23,8,10,25,5,8,8,10,8,14,9,10,15,58,61,80,48,48,38,96,99,95,98,99,99,99,83,83,83,83,83,83,83,83,83,83,83,83,83,83,83,83,83,83,83,83,83,83,79,83,83,83,83,83,83,83,83,83,0,83,83,83,8,83,83,99,99,99,99,99,99,99,99,99,99,99,99,99,99,99,99,99,99,99,99,99,99,99,0,99,99,99,99,211,211,211,211,211,211,211,211,211,211,211,211,211,211,211,211,211,206,205,193,204,205,325,325,497,497,159,482,452,452,444,426,556,539,7393,7067,12835,5449,29968,7843,2317,1683,29994,29995,29996,29997,29997,831]} 1. Nf3 {[%emt 0:03:42]} d5 {[%emt 0:01:00]} 2. g3 {[%emt 0:00:05]} Nf6 {[%emt 0:00:22]} 3. Bg2 {[%emt 0:00:10]} c5 {[%emt 0:01:22]} 4. O-O {[%emt 0:01:06]} Nc6 {[%emt 0:00:04]} 5. d4 {[%emt 0:00:07]} e6 {[%emt 0:00:16]} 6. c4 {[%emt 0:01:34]} dxc4 {[%emt 0:00:07]} 7. dxc5 {[%emt 0:01:38]} Qxd1 {[%emt 0:00:09]} 8. Rxd1 {[%emt 0:00:02]} Bxc5 {[%emt 0:00:09]} 9. Nbd2 {[%emt 0:00:07]} c3 {[%emt 0:00:05]} 10. bxc3 {[%emt 0:00:05]} O-O {[%emt 0:00:30]} 11. Nb3 {[%emt 0:00:53]} Be7 {[%emt 0:00:05]} 12. Bb2 {[%emt 0:04:07]} Bd7 {[%emt 0:03:45]} 13. c4 {[%emt 0:00:07]} Rfc8 {[%emt 0:03:16] Die Stellung ist ausgeglichen.} 14. c5 {[%emt 0:14:41]} Be8 {[%emt 0:02:38]} 15. Nfd2 {[%emt 0:02:43]} b6 {[%emt 0:05:21]} 16. cxb6 {[%emt 0:03:49]} axb6 {[%emt 0:00:10]} 17. Nc4 {[%emt 0:00:08]} Rab8 {[%emt 0:03:13]} 18. Nd6 {[%emt 0:01:12]} Bxd6 {[%emt 0:01:43]} 19. Rxd6 {[%emt 0:03:45]} Na5 {[%emt 0:02:01]} 20. Nxa5 {[%emt 0:02:22]} bxa5 {[%emt 0:00:10]} 21. Bd4 {[%emt 0:11:56]} a4 {[%emt 0:12:30]} 22. Bf3 {[%emt 0:12:12]} Rb5 {[%emt 0:17:51]} 23. e4 {[%emt 0:14:58]} e5 {[%emt 0:12:37]} 24. Be3 {[%emt 0:01:25]} Rbb8 {[%emt 0:01:30]} 25. g4 {[%emt 0:15:30]} Nd7 {[%emt 0:18:48]} 26. g5 {[%emt 0:06:34]} Nf8 {[%emt 0:05:50]} 27. Kg2 {[%emt 0:00:34]} Bb5 {[%emt 0:02:07]} 28. Kg3 {[%emt 0:01:22]} Bc4 {[%emt 0:00:33]} 29. a3 {[%emt 0:00:58] Schwarz hat schwache schwarze Felder} Bb3 {[%emt 0:02:01]} 30. Rc1 {[%emt 0:02:15]} Rxc1 {[%emt 0:00:37]} 31. Bxc1 {[%emt 0:00:01]} Ne6 {[%emt 0:00:41]} 32. Be3 {[%emt 0:01:21]} Rd8 {[%emt 0:02:45]} 33. Rxd8+ {[%emt 0:02:09]} Nxd8 $14 {[%emt 0:00:26][%mdl 4096] Endspiel. KBB-KBN} 34. Bc5 {[%emt 0:01:27]} Ne6 {[%emt 0:05:40]} 35. Be7 {[%emt 0:00:35]} Bc2 {[%emt 0:00:31]} 36. h4 {[%emt 0:01:40]} Nd4 {[%emt 0:00:28]} 37. Bg2 {[%emt 0:01:02]} Ne2+ {[%emt 0:03:08]} 38. Kg4 {[%emt 0:00:16]} Nf4 {[%emt 0:00:47]} 39. Bf3 {[%emt 0:00:43]} Nd3 {[%emt 0:01:27]} 40. Kg3 {[%emt 0:00:27]} Nb2 {[%emt 0:01:14]} 41. Bg2 {[%emt 0:03:33]} Nd3 {[%emt 0:03:48]} 42. Bh3 {[%emt 0:06:39]} Nf4 {[%emt 0:03:28][%cal Of4h3]} 43. Bd7 {[%emt 0:00:19]} Bd1 {[%emt 0:00:53]} (43... f6 $5) 44. f3 {[%emt 0:05:00]} Bb3 {[%emt 0:03:22]} 45. Bb5 {[%emt 0:04:06]} Ne6 {[%emt 0:07:29]} 46. Be8 {[%emt 0:08:26]} Nf4 {[%emt 0:05:29]} 47. Bd6 {[%emt 0:02:19]} f6 {[%emt 0:03:02]} 48. Be7 {[%emt 0:00:32]} fxg5 {[%emt 0:02:26]} 49. hxg5 {[%emt 0:01:48]} Ne6 {[%emt 0:05:19]} 50. Kf2 {[%emt 0:07:26]} Nc7 {[%emt 0:02:01]} 51. Bc6 {[%emt 0:01:53]} Kf7 {[%emt 0:00:27]} ({Besser ist} 51... Ne6 $14) 52. Bd6 $16 {[%emt 0:00:24]} Ne6 {[%emt 0:00:07]} 53. Bxe5 {[%emt 0:00:18] f4 wäre nun fies. Ein starkes Läuferpaar.} Nxg5 {[%emt 0:00:14]} 54. f4 {[%emt 0:00:31]} Ne6 {[%emt 0:00:43]} 55. Ke3 {[%emt 0:00:54]} g6 {[%emt 0:01:19]} 56. f5 {[%emt 0:01:39]} gxf5 {[%emt 0:03:48]} 57. exf5 {[%emt 0:00:01]} Ng7 {[%emt 0:02:03]} 58. Kf4 {[%emt 0:01:05]} Ne8 {[%emt 0:00:57]} 59. Kg5 {[%emt 0:00:44] Weiß steht aktiver.} Nf6 {[%emt 0:01:14][%cal Oh7h6]} 60. Bf3 {[%emt 0:01:29]} (60. Bxf6 $6 h6+ 61. Kxh6 Kxf6 $11) 60... Bc2 {[%emt 0:02:19]} 61. Bd4 {[%emt 0:00:39]} (61. Bxf6 $6 h6+ 62. Kf4 Kxf6 $11) 61... Ne4+ {[%emt 0:00:43] [#]} 62. Kf4 $1 {[%emt 0:00:15]} Nf6 {[%emt 0:00:12]} 63. Be2 {[%emt 0:01:11]} Bb3 {[%emt 0:00:18]} 64. Bb5 {[%emt 0:00:55]} Nd5+ {[%emt 0:01:02]} 65. Ke5 {[%emt 0:00:14]} Nf6 {[%emt 0:00:23]} 66. Bb6 {[%emt 0:00:47]} Ng4+ {[%emt 0:00:42]} 67. Kf4 {[%emt 0:00:23]} Nf6 {[%emt 0:00:12] Und jetzt ...Nd5+ wäre schön.} 68. Bf2 {[%emt 0:00:19]} Nd5+ {[%emt 0:00:41]} 69. Kg5 {[%emt 0:00:08]} Nf6 {[%emt 0:00:09] Droht ...Ne4+ und aus.} 70. Bd4 {[%emt 0:00:54]} Ne4+ {[%emt 0:00:33]} 71. Kh6 {[%emt 0:00:12]} (71. Kf4 $16 Nf6 72. Bd3) 71... Nf6 {[%emt 0:00:36]} (71... Nd6 $11 72. Bd3 Bd5) 72. Be2 {[%emt 0:00:31]} Bd5 {[%emt 0:00:57]} 73. Bd1 {[%emt 0:00:28]} ({Günstiger ist} 73. Kg5 $16) 73... Bc6 {[%emt 0:00:21]} (73... Bb3 $11 {hält das Gleichgewicht.} 74. Be2 Bd5) 74. Kg5 {[%emt 0:00:48]} Bb5 {[%emt 0:01:12]} 75. Kf4 {[%emt 0:00:39]} (75. Bxf6 $6 h6+ 76. Kxh6 Kxf6 $11) 75... Nd5+ {[%emt 0:00:44]} 76. Ke5 {[%emt 0:00:06]} Nf6 {[%emt 0:00:02]} 77. Bf2 {[%emt 0:00:39]} Nd7+ {[%emt 0:00:50]} 78. Kd6 {[%emt 0:00:19]} Nf6 {[%emt 0:00:04] Pariert Bh5+. Weiss muss nun ...Ne4+ beachten.} 79. Bh4 {[%emt 0:00:43]} h5 {[%emt 0:00:56]} 80. Ke5 {[%emt 0:00:28]} Ng4+ {[%emt 0:00:19]} 81. Kf4 {[%emt 0:00:05]} Nf6 {[%emt 0:00:51]} 82. Kg5 {[%emt 0:00:55]} Bc6 {[%emt 0:00:38]} 83. Be2 {[%emt 0:00:25]} (83. Bxh5+ Nxh5 84. Kxh5 Ke8 $15) 83... Bd5 {[%emt 0:00:21]} 84. Bb5 {[%emt 0:00:08]} (84. Bxh5+ Nxh5 85. Kxh5 Be4 $11) 84... Bb3 {[%emt 0:00:05]} 85. Bc6 {[%emt 0:00:28]} Bd1 {[%emt 0:00:37]} 86. Bb5 {[%emt 0:01:09]} Bb3 $1 {[%emt 0:00:02] Lässt Bc4+ nicht zu} 87. Be1 {[%emt 0:00:21]} Nd5 {[%emt 0:01:27]} 88. Bc6 {[%emt 0:00:49][%cal Oe1f2]} ({Doch nicht} 88. Kxh5 Ne3 $15) 88... Ne3 {[%emt 0:00:24] [#]} (88... Nf6 $16 {war nötig.}) 89. Bf2 $1 $18 {[%emt 0:00:28]} (89. Kxh5 Nc2 90. Bc3 Nxa3 $11) 89... Nc4 {[%emt 0:00:38]} 90. Bd5+ {[%emt 0:00:24]} (90. Kxh5 Nxa3 91. Bd4 Nc2 $11) 90... Ke8 {[%emt 0:00:16]} 91. Bc5 {[%emt 0:00:33]} (91. Kxh5 Nxa3 92. Be4 Nc2 $11) 91... Ne5 {[%emt 0:00:28]} 92. Be4 {[%emt 0:00:19]} Kf7 {[%emt 0:00:39]} 93. Bd4 {[%emt 0:00:40]} ({Minderwertig wäre} 93. Kxh5 Nd7 94. Bd4 Nf6+ 95. Bxf6 Kxf6 $11) 93... Nd7 {[%emt 0:00:31]} 94. Bf3 {[%emt 0:00:13]} ({Schlechter ist} 94. Kxh5 Nf6+ 95. Bxf6 Kxf6 $11) 94... h4 {[%emt 0:00:31]} 95. Kxh4 {[%emt 0:00:17]} Nf6 {[%emt 0:00:19]} 96. Kg5 {[%emt 0:00:06]} Nh7+ {[%emt 0:00:09]} 97. Kf4 {[%emt 0:00:04]} Nf6 {[%emt 0:00:04]} 98. Be2 {[%emt 0:01:09]} Bd5 {[%emt 0:00:45]} 99. Bd1 {[%emt 0:00:52]} Bc6 {[%emt 0:00:02]} (99... Bb3 $142) 100. Ke5 {[%emt 0:00:23]} Ke7 {[%emt 0:00:15]} (100... Bb5 $142 101. Be3 Nd7+ 102. Kd4 Kf6) 101. Be2 {[%emt 0:00:50]} Nd7+ {[%emt 0:00:49]} 102. Kf4 {[%emt 0:00:05] Danach kann Schwarz die Partie nicht mehr halten.} Nf6 {[%emt 0:00:45]} 103. Kg5 {[%emt 0:00:27]} Ne4+ {[%emt 0:00:32]} 104. Kg6 {[%emt 0:00:09]} Kd7 {[%emt 0:00:34]} 105. f6 {[%emt 0:00:29]} Nxf6 {[%emt 0:00:34]} 106. Kxf6 {[%emt 0:00:12]} Kc7 {[%emt 0:00:12]} 107. Ke5 {[%emt 0:00:14] Beabsichtigt Bg4 und Matt.} Kb7 {[%emt 0:00:17]} 108. Kd6 {[%emt 0:00:05][%cal Oe2a6] Droht Matt per Ba6+!} Be8 {[%emt 0:00:42]} 109. Bf3+ {[%emt 0:00:05]} Ka6 {[%emt 0:00:26]} 110. Kc7 {[%emt 0:00:39] Weiß setzt Matt.} Ka5 {[%emt 0:00:33]} 111. Kb7 {[%emt 0:02:42]} Bc6+ {[%emt 0:01:27]} 112. Kxc6 {[%emt 0:00:12] Gewichteter Fehlerwert: Weiß=0.05 (makellos) /Schwarz=0.06 (makellos) .  Fehler:       	Weiß=2     	Schwarz=6     Ungenau:       	Weiß=1     	Schwarz=6     OK:         	Weiß=43    	Schwarz=37    Bester:       	Weiß=4     	Schwarz=6     Stark:        	Weiß=2     	Schwarz=1} 1-0

[Event "Fagernes Chess GM-Swiss 2024"]
[Site "Fagernes"]
[Date "2024.03.25"]
[Round "2"]
[White "Sorensen, Hampus"]
[Black "Oksendal, Martin"]
[Result "1/2-1/2"]
[ECO "A50"]
[WhiteElo "2428"]
[BlackElo "2086"]
[Annotator "TA"]
[PlyCount "119"]
[EventDate "2024.03.25"]
[EventType "swiss"]
[EventCountry "NOR"]
[SourceTitle "playchess.com"]
[Source "ChessBase"]
[SourceQuality "1"]
[TimeControl "40/6000+30:2400+30"]

{[%evp 18,119,14,13,15,18,20,10,11,18,28,12,31,14,33,22,41,43,34,34,44,50,77,74,78,66,100,0,0,0,0,0,0,0,0,0,0,0,0,0,0,0,7,6,6,6,6,8,12,0,9,8,8,7,7,5,7,5,10,8,56,52,41,0,0,0,0,0,0,0,0,0,0,0,0,0,0,0,0,0,0,0,0,0,0,0,0,0,0,0,0,0,0,0,0,0,8,8,8,8,8,8,8,8]} 1. d4 {[%emt 2:54:00]} Nf6 {[%emt 0:01:54]} 2. c4 {[%emt 0:00:18]} e6 {[%emt 0:00:16]} 3. Bf4 {[%emt 0:00:16]} d5 {[%emt 0:00:36]} 4. cxd5 {[%emt 0:01:06]} exd5 {[%emt 0:01:11]} 5. e3 {[%emt 0:00:32]} Bd6 {[%emt 0:02:45]} 6. Bxd6 {[%emt 0:00:43] A50: Damenindisch (ohne e7-e6).} Qxd6 {[%emt 0:00:10]} 7. Bd3 {[%emt 0:00:13]} O-O {[%emt 0:02:40]} 8. Nc3 {[%emt 0:01:13]} c6 {[%emt 0:05:30]} 9. h3 {[%emt 0:03:31]} Re8 {[%emt 0:03:29]} 10. Qc2 {[%emt 0:00:49]} b6 {[%emt 0:15:09]} 11. Nf3 $146 {[%emt 0:10:48]} ({Predecessor:} 11. Rc1 c5 12. dxc5 bxc5 13. Nb5 Qd8 14. Qxc5 Na6 15. Qa3 d4 16. Nf3 dxe3 17. O-O exf2+ 18. Rxf2 {½-½ Tabatabaei,M (2686)-Adhiban,B (2610) Tata Steel-B 85th 2023 (1)}) 11... Ba6 {[%emt 0:09:18]} 12. O-O {[%emt 0:06:50]} Bxd3 {[%emt 0:00:33]} 13. Qxd3 {[%emt 0:00:06]} Nbd7 {[%emt 0:00:25]} 14. Rac1 {[%emt 0:03:05]} Ne4 {[%emt 0:03:34]} 15. Rc2 {[%emt 0:08:59]} Nxc3 {[%emt 0:08:42]} 16. Rxc3 {[%emt 0:05:03]} c5 {[%emt 0:10:55]} 17. dxc5 {[%emt 0:00:36]} bxc5 {[%emt 0:02:40]} 18. Rd1 {[%emt 0:10:33]} Nf6 {[%emt 0:00:48]} 19. Qc2 {[%emt 0:00:14]} Rac8 {[%emt 0:04:53] [#]} 20. b4 $1 {[%emt 0:02:59]} Ne4 {[%emt 0:05:36]} ({Falsch wäre} 20... c4 $2 21. Rxc4 Rxc4 22. Qxc4 $18) 21. bxc5 {[%emt 0:00:39]} Qa6 {[%emt 0:07:26]} 22. Rb3 {[%emt 0:15:53]} (22. Qd3 $16 Qa5 23. Rcc1 Rxc5 24. Rxc5 Qxc5 25. Qxd5) 22... Rxc5 $11 {[%emt 0:09:30]} 23. Qb2 {[%emt 0:00:21]} Rec8 {[%emt 0:02:39]} 24. Nd4 {[%emt 0:01:00]} g6 {[%emt 0:03:08]} 25. Rb8 {[%emt 0:03:33]} Qf6 {[%emt 0:02:09]} 26. Re1 {[%emt 0:12:50]} Kg7 {[%emt 0:01:32]} 27. Rxc8 {[%emt 0:00:48]} Rxc8 {[%emt 0:00:01]} 28. Re2 {[%emt 0:00:23]} Nd6 {[%emt 0:02:39]} 29. Rc2 {[%emt 0:03:56]} Rxc2 {[%emt 0:01:36]} 30. Qxc2 {[%emt 0:00:02]} Nc4 {[%emt 0:00:51]} 31. Qd1 {[%emt 0:07:03]} Qe5 {[%emt 0:01:21]} 32. Ne2 {[%emt 0:00:09]} a6 {[%emt 0:00:50]} 33. Kh1 {[%emt 0:02:35]} Nb2 {[%emt 0:01:13]} 34. Qa1 {[%emt 0:01:58]} Nd3 {[%emt 0:00:52]} 35. Qxe5+ Nxe5 36. Nf4 {[%emt 0:00:07]} d4 $1 {[%emt 0:00:26]} 37. exd4 {[%emt 0:00:01]} Nc6 $1 {[%emt 0:00:19]} 38. d5 {[%emt 0:02:08]} Nb4 {[%emt 0:00:49]} (38... Ne5 $11 {scheint genauer.}) 39. a3 {[%emt 0:03:34]} Nc2 {[%emt 0:00:20]} 40. a4 {[%emt 0:01:13]} Nb4 {[%emt 0:00:40]} 41. d6 {[%emt 0:02:29]} Kf6 {[%emt 0:04:10]} 42. h4 {[%emt 0:06:56]} a5 {[%emt 0:05:06]} 43. Kh2 {[%emt 0:05:37]} Na6 {[%emt 0:03:27]} 44. Nd5+ {[%emt 0:11:33]} (44. d7 $5 Ke7 $8 45. Nd5+ Kxd7 46. Nb6+ (46. Nf6+ Ke6 $15) 46... Kc7 47. Nc4 $16) 44... Ke6 {[%emt 0:00:21]} 45. d7 {[%emt 0:05:20]} Kxd7 $1 {[%emt 0:01:43]} 46. Nb6+ {[%emt 0:00:18]} (46. Nf6+ Ke7 47. Ne4 f5) 46... Ke6 {[%emt 0:00:51]} 47. Nc4 {[%emt 0:01:28]} Nc5 {[%emt 0:00:07]} 48. Nxa5 {[%emt 0:00:07]} Nxa4 {[%emt 0:00:05]} 49. Nb3 {[%emt 0:01:23]} Nc3 {[%emt 0:00:38]} 50. Kg3 {[%emt 0:00:16]} Ne4+ {[%emt 0:05:26]} 51. Kf3 {[%emt 0:00:09]} Ke5 {[%emt 0:03:17]} 52. Nc1 {[%emt 0:00:52]} Nc5 {[%emt 0:00:20]} 53. Ke3 {[%emt 0:00:27]} Kf5 {[%emt 0:03:06]} 54. f3 {[%emt 0:00:29]} h5 {[%emt 0:01:14]} 55. g3 {[%emt 0:01:54]} f6 {[%emt 0:00:45]} 56. Ne2 {[%emt 0:00:52]} Ne6 {[%emt 0:01:15]} 57. g4+ {[%emt 0:02:00]} hxg4 {[%emt 0:00:24]} 58. f4 {[%emt 0:00:40]} Nxf4 {[%emt 0:01:52]} 59. Nxf4 {[%emt 0:00:05]} g5 {[%emt 0:00:03]} 60. hxg5 {[%emt 0:00:04]} 1/2-1/2